fUSD/lending_fUSD_20250309
["ID","MTS","AMOUNT","RATE_DAILY","PERIOD"]
[355746149,1741526911123,1695.59440484,0.00026616,30]
[355746150,1741526911317,1836.26913456,0.00026616,120]
[355746151,1741526911831,2000.0,8.111e-05,2]
[355746152,1741526912006,265.54326994,0.00026616,30]
[355746153,1741526912206,2677.71925756,0.00026616,30]
[355746154,1741526912250,468.64703267,0.00026616,45]
[355746155,1741526912543,1759.03275026,0.00026616,30]
[355746156,1741526912857,2313.96756653,0.00026616,30]
[355746157,1741526913557,212.62715603,0.00026616,60]
[355746158,1741526913623,6943.64711058,0.00026616,60]
[355746159,1741526913764,2033.72408531,0.00026616,120]
[355746161,1741526914185,2496.23613134,0.00026616,120]
[355746162,1741526914504,1456.3803277,0.00026616,30]
[355746163,1741526915227,1071.13588176,0.00026616,120]
[355746164,1741526916587,2185.51152142,0.00026616,30]
[355746165,1741526916826,411.48212345,0.00026616,120]
[355746166,1741526922019,425.1046872,0.00026616,30]
[355746170,1741526929291,549.16205699,8.111e-05,2]
[355746171,1741526929337,2462.02794301,8.111e-05,2]
[355746312,1741527031623,-535.3884398,8.17e-05,2]
[355746313,1741527031752,-5149.18590666,8.17e-05,2]
[355746314,1741527031762,-6374.14514686,8.171e-05,2]
[355746315,1741527031771,-150.0,8.179e-05,2]
[355746316,1741527031780,-300.0,8.179e-05,2]
[355746317,1741527031790,-21261.28894648,8.18e-05,2]
[355746318,1741527031801,-45168.69505225,8.18e-05,2]
[355746319,1741527031811,-152.7255247,8.183e-05,2]
[355746320,1741527031820,-12730.66005557,8.188e-05,2]
[355746321,1741527031832,-7397.50094108,8.188e-05,2]
[355746322,1741527031843,-17773.40601944,8.188e-05,2]
[355746323,1741527031852,-3135.59,8.199e-05,2]
[355746324,1741527031861,-1503.74,8.219e-05,2]
[355746325,1741527031870,-276.18,8.219e-05,2]
[355746326,1741527031879,-1000.0,8.271e-05,2]
[355746328,1741527031889,-179.38,8.359e-05,2]
[355746330,1741527031899,-152.52,8.359e-05,2]
[355746332,1741527031908,-992.32,8.359e-05,2]
[355746333,1741527031918,-255.0,8.997e-05,2]
[355746334,1741527031927,-420.0,8.997e-05,2]
[355746335,1741527031936,-19055.804,9.003e-05,2]
[355746336,1741527031945,-38273.0714,9.003e-05,2]
[355746337,1741527031955,-152.92773352,9.083e-05,2]
[355746338,1741527031965,-500.0,9.083e-05,2]
[355746339,1741527031974,-500.0,9.083e-05,2]
[355746340,1741527031984,-165.50917551,9.083e-05,2]
[355746341,1741527031994,-160.27336276,9.083e-05,2]
[355746342,1741527032003,-160.28864595,9.083e-05,2]
[355746344,1741527032012,-151.31381732,9.083e-05,2]
[355746346,1741527032022,-156.82590197,9.083e-05,2]
[355746348,1741527032031,-160.11577162,9.083e-05,2]
[355746350,1741527032039,-153.3704197,9.083e-05,2]
[355746351,1741527032049,-351.81362702,9.083e-05,2]
[355746352,1741527032060,-210.14423948,9.083e-05,2]
[355746353,1741527032070,-190.33697843,9.083e-05,2]
[355746354,1741527032081,-29693.63268887,9.098e-05,2]
[355746355,1741527032091,-952.72,9.1e-05,2]
[355746357,1741527032100,-1149.1,9.1e-05,2]
[355746359,1741527032109,-950.47,9.1e-05,2]
[355746360,1741527032118,-1987.29,9.1e-05,2]
[355746363,1741527032127,-634.88,9.1e-05,2]
[355746364,1741527032137,-500.0,9.1e-05,2]
[355746366,1741527032147,-1014.4,9.1e-05,2]
[355746367,1741527032156,-1460.49,9.1e-05,2]
[355746368,1741527032165,-177.29,9.1e-05,2]
[355746369,1741527032174,-1699.17,9.1e-05,2]
[355746370,1741527032184,-500.0,9.1e-05,2]
[355746371,1741527032194,-550.64,9.1e-05,2]
[355746372,1741527032203,-2542.92,9.1e-05,2]
[355746373,1741527032212,-838.72,9.1e-05,2]
[355746374,1741527032222,-1931.8,9.1e-05,2]
[355746375,1741527032231,-1612.75,9.1e-05,2]
[355746376,1741527032240,-1014.26,9.1e-05,2]
[355746377,1741527032250,-500.0,9.1e-05,2]
[355746378,1741527032259,-1044.73,9.1e-05,2]
[355746379,1741527032268,-1121.06,9.1e-05,2]
[355746380,1741527032277,-500.0,9.1e-05,2]
[355746381,1741527032286,-524.68,9.1e-05,2]
[355746382,1741527032295,-806.8,9.1e-05,2]
[355746383,1741527032304,-860.39,9.1e-05,2]
[355746384,1741527032314,-512.84,9.1e-05,2]
[355746385,1741527032324,-782.03,9.1e-05,2]
[355746386,1741527032333,-700.33,9.1e-05,2]
[355746387,1741527032342,-513.43216536,9.1e-05,2]
[355746388,1741527032352,-500.0,9.1e-05,2]
[355746389,1741527032361,-500.0,9.101e-05,2]
[355746390,1741527032370,-500.0,9.101e-05,2]
[355746391,1741527032380,-500.0,9.101e-05,2]
[355746392,1741527032389,-508.51010744,9.101e-05,2]
[355746393,1741527032399,-500.0,9.101e-05,2]
[355746394,1741527032408,-528.52,9.101e-05,2]
[355746395,1741527032417,-500.0,9.101e-05,2]
[355746396,1741527032427,-500.0,9.101e-05,2]
[355746397,1741527032436,-500.0,9.101e-05,2]
[355746398,1741527032445,-500.0,9.101e-05,2]
[355746399,1741527032455,-500.0,9.101e-05,2]
[355746400,1741527032464,-500.0,9.101e-05,2]
[355746401,1741527032474,-500.0,9.101e-05,2]
[355746402,1741527032484,-500.0,9.101e-05,2]
[355746403,1741527032493,-500.0,9.101e-05,2]
[355746404,1741527032502,-500.0,9.101e-05,2]
[355746405,1741527032512,-500.0,9.101e-05,2]
[355746406,1741527032521,-500.0,9.101e-05,2]
[355746407,1741527032530,-500.0,9.101e-05,2]
[355746408,1741527032540,-585.7,9.101e-05,2]
[355746409,1741527032549,-500.0,9.101e-05,2]
[355746410,1741527032559,-500.0,9.101e-05,2]
[355746411,1741527032568,-500.0,9.101e-05,2]
[355746412,1741527032578,-500.0,9.101e-05,2]
[355746413,1741527032592,-500.0,9.101e-05,2]
[355746414,1741527032601,-599.49,9.101e-05,2]
[355746415,1741527032610,-243.200957,9.101e-05,2]
[355746416,1741527032625,-516.72556146,9.101e-05,2]
[355746417,1741527032635,-500.0,9.101e-05,2]
[355746418,1741527032645,-500.0,9.101e-05,2]
[355746419,1741527032654,-535.26,9.101e-05,2]
[355746420,1741527032663,-310.781839,9.101e-05,2]
[355746421,1741527032673,-549.71564756,9.101e-05,2]
[355746422,1741527032682,-769.92,9.101e-05,2]
[355746423,1741527032691,-500.0,9.101e-05,2]
[355746424,1741527032700,-500.0,9.101e-05,2]
[355746425,1741527032710,-500.0,9.101e-05,2]
[355746426,1741527032719,-510.41429215,9.101e-05,2]
[355746427,1741527032728,-500.0,9.101e-05,2]
[355746428,1741527032738,-500.0,9.101e-05,2]
[355746429,1741527032747,-627.66,9.101e-05,2]
[355746430,1741527032756,-655.73,9.101e-05,2]
[355746431,1741527032767,-500.0,9.101e-05,2]
[355746432,1741527032776,-568.03,9.101e-05,2]
[355746433,1741527032785,-523.06,9.101e-05,2]
[355746434,1741527032795,-523.98,9.101e-05,2]
[355746435,1741527032804,-500.0,9.101e-05,2]
[355746436,1741527032813,-500.0,9.101e-05,2]
[355746437,1741527032823,-500.0,9.101e-05,2]
[355746438,1741527032832,-606.31,9.101e-05,2]
[355746439,1741527032842,-215.30826612,9.101e-05,2]
[355746440,1741527032851,-500.0,9.101e-05,2]
[355746441,1741527032861,-546.62,9.101e-05,2]
[355746442,1741527032871,-500.0,9.101e-05,2]
[355746443,1741527032880,-516.34,9.101e-05,2]
[355746444,1741527032889,-500.0,9.101e-05,2]
[355746445,1741527032899,-765.49,9.101e-05,2]
[355746446,1741527032908,-500.0,9.101e-05,2]
[355746447,1741527032918,-500.0,9.101e-05,2]
[355746448,1741527032927,-4121.29,9.101e-05,2]
[355746449,1741527032937,-809.07,9.101e-05,2]
[355746450,1741527032947,-2412.27,9.101e-05,2]
[355746451,1741527032956,-3196.8,9.101e-05,2]
[355746452,1741527032965,-523.45425644,9.101e-05,2]
[355746453,1741527032975,-500.0,9.101e-05,2]
[355746454,1741527032983,-1037.28,9.101e-05,2]
[355746455,1741527032993,-1231.26,9.101e-05,2]
[355746456,1741527033002,-1714.7,9.101e-05,2]
[355746457,1741527033012,-500.0,9.101e-05,2]
[355746458,1741527033021,-2345.57,9.101e-05,2]
[355746459,1741527033030,-500.0,9.101e-05,2]
[355746460,1741527033040,-500.0,9.101e-05,2]
[355746461,1741527033050,-1197.7,9.101e-05,2]
[355746462,1741527033059,-1540.82,9.101e-05,2]
[355746463,1741527033068,-500.0,9.101e-05,2]
[355746464,1741527033078,-1440.89,9.101e-05,2]
[355746465,1741527033088,-1674.65,9.101e-05,2]
[355746466,1741527033098,-2672.81,9.101e-05,2]
[355746467,1741527033107,-500.0,9.101e-05,2]
[355746468,1741527033116,-664.16,9.101e-05,2]
[355746469,1741527033126,-500.0,9.101e-05,2]
[355746470,1741527033135,-500.0,9.101e-05,2]
[355746471,1741527033145,-680.3,9.101e-05,2]
[355746472,1741527033157,-870.98,9.101e-05,2]
[355746473,1741527033167,-681.51,9.101e-05,2]
[355746474,1741527033176,-500.0,9.101e-05,2]
[355746475,1741527033185,-500.0,9.101e-05,2]
[355746476,1741527033196,-1016.85,9.101e-05,2]
[355746477,1741527033206,-1170.36,9.101e-05,2]
[355746478,1741527033217,-500.0,9.101e-05,2]
[355746479,1741527033227,-500.0,9.101e-05,2]
[355746480,1741527033236,-1531.14,9.101e-05,2]
[355746481,1741527033246,-637.8602169,9.101e-05,2]
[355746482,1741527033256,-739.65,9.101e-05,2]
[355746483,1741527033265,-2197.65,9.101e-05,2]
[355746484,1741527033275,-438.58220627,9.101e-05,2]
[355746485,1741527033285,-1109.22,9.101e-05,2]
[355746486,1741527033295,-500.0,9.101e-05,2]
[355746487,1741527033305,-888.01,9.101e-05,2]
[355746488,1741527033315,-565.84,9.101e-05,2]
[355746489,1741527033325,-518.74202168,9.101e-05,2]
[355746490,1741527033335,-8795.84,9.101e-05,2]
[355746491,1741527033345,-1854.56,9.101e-05,2]
[355746492,1741527033355,-371.46078895,9.101e-05,2]
[355746493,1741527033365,-958.18,9.101e-05,2]
[355746494,1741527033374,-1127.54,9.101e-05,2]
[355746495,1741527033384,-500.0,9.101e-05,2]
[355746496,1741527033394,-2015.8,9.101e-05,2]
[355746497,1741527033405,-500.0,9.101e-05,2]
[355746498,1741527033414,-3176.53,9.101e-05,2]
[355746499,1741527033424,-500.0,9.101e-05,2]
[355746500,1741527033434,-620.42,9.101e-05,2]
[355746501,1741527033444,-500.0,9.101e-05,2]
[355746502,1741527033453,-500.0,9.101e-05,2]
[355746503,1741527033463,-637.36,9.101e-05,2]
[355746504,1741527033473,-1041.07,9.101e-05,2]
[355746505,1741527033482,-679.3,9.101e-05,2]
[355746506,1741527033492,-731.33,9.101e-05,2]
[355746507,1741527033502,-5072.5,9.101e-05,2]
[355746508,1741527033512,-724.3,9.101e-05,2]
[355746509,1741527033522,-500.0,9.101e-05,2]
[355746510,1741527033532,-500.0,9.101e-05,2]
[355746511,1741527033541,-502.25677757,9.101e-05,2]
[355746512,1741527033551,-956.37,9.101e-05,2]
[355746513,1741527033561,-500.0,9.101e-05,2]
[355746514,1741527033571,-500.0,9.101e-05,2]
[355746515,1741527033583,-1572.82,9.101e-05,2]
[355746516,1741527033597,-500.0,9.101e-05,2]
[355746517,1741527033608,-7801.13,9.101e-05,2]
[355746518,1741527033617,-791.93,9.101e-05,2]
[355746519,1741527033627,-500.0,9.101e-05,2]
[355746520,1741527033636,-617.53,9.101e-05,2]
[355746521,1741527033646,-500.0,9.101e-05,2]
[355746522,1741527033883,-830.16,9.101e-05,2]
[355746523,1741527033892,-500.0,9.101e-05,2]
[355746524,1741527033902,-819.4,9.101e-05,2]
[355746525,1741527033911,-500.0,9.101e-05,2]
[355746526,1741527033921,-500.0,9.101e-05,2]
[355746527,1741527033930,-538.4,9.101e-05,2]
[355746528,1741527033940,-1000.0,9.102e-05,2]
[355746529,1741527033950,-500.0,9.102e-05,2]
[355746530,1741527033959,-500.0,9.102e-05,2]
[355746531,1741527033969,-500.0,9.102e-05,2]
[355746532,1741527033978,-500.0,9.102e-05,2]
[355746533,1741527033987,-220.12,9.102e-05,2]
[355746534,1741527033996,-432.41,9.102e-05,2]
[355746535,1741527034005,-500.0,9.102e-05,2]
[355746536,1741527034015,-320.71,9.102e-05,2]
[355746537,1741527034024,-613.95,9.102e-05,2]
[355746538,1741527034033,-500.0,9.102e-05,2]
[355746539,1741527034043,-500.0,9.102e-05,2]
[355746540,1741527034052,-506.43340478,9.102e-05,2]
[355746541,1741527034061,-505.79039243,9.102e-05,2]
[355746542,1741527034071,-630.84,9.102e-05,2]
[355746543,1741527034081,-500.0,9.102e-05,2]
[355746544,1741527034090,-500.0,9.102e-05,2]
[355746545,1741527034100,-500.0,9.102e-05,2]
[355746546,1741527034110,-174.44,9.102e-05,2]
[355746547,1741527034119,-500.0,9.102e-05,2]
[355746548,1741527034128,-500.0,9.102e-05,2]
[355746549,1741527034138,-500.0,9.102e-05,2]
[355746550,1741527034147,-500.0,9.102e-05,2]
[355746551,1741527034157,-500.0,9.102e-05,2]
[355746552,1741527034167,-500.0,9.102e-05,2]
[355746553,1741527034177,-500.0,9.102e-05,2]
[355746554,1741527034187,-631.03,9.102e-05,2]
[355746555,1741527034197,-285.03,9.102e-05,2]
[355746556,1741527034207,-1547.73,9.102e-05,2]
[355746557,1741527034217,-178.92,9.102e-05,2]
[355746558,1741527034227,-1033.04,9.102e-05,2]
[355746559,1741527034236,-500.0,9.102e-05,2]
[355746560,1741527034245,-500.0,9.102e-05,2]
[355746561,1741527034255,-500.0,9.102e-05,2]
[355746562,1741527034264,-500.0,9.102e-05,2]
[355746563,1741527034273,-6919.93,9.102e-05,2]
[355746564,1741527034283,-536.8,9.102e-05,2]
[355746565,1741527034292,-507.00785316,9.102e-05,2]
[355746566,1741527034301,-156.09805742,9.102e-05,2]
[355746567,1741527034311,-770.9,9.102e-05,2]
[355746568,1741527034321,-500.0,9.102e-05,2]
[355746569,1741527034330,-551.55,9.102e-05,2]
[355746570,1741527034339,-500.0,9.102e-05,2]
[355746571,1741527034349,-500.0,9.102e-05,2]
[355746572,1741527034358,-511.93,9.102e-05,2]
[355746573,1741527034367,-500.0,9.102e-05,2]
[355746574,1741527034376,-1418.58,9.102e-05,2]
[355746575,1741527034385,-500.0,9.102e-05,2]
[355746576,1741527034395,-1195.0,9.102e-05,2]
[355746577,1741527034404,-968.88,9.102e-05,2]
[355746578,1741527034413,-494.0,9.102e-05,2]
[355746579,1741527034422,-156.69,9.102e-05,2]
[355746580,1741527034431,-505.62178398,9.102e-05,2]
[355746581,1741527034440,-500.0,9.102e-05,2]
[355746582,1741527034450,-500.0,9.102e-05,2]
[355746583,1741527034460,-500.0,9.102e-05,2]
[355746584,1741527034470,-500.0,9.102e-05,2]
[355746585,1741527034479,-500.0,9.102e-05,2]
[355746586,1741527034488,-1538.38,9.102e-05,2]
[355746587,1741527034498,-500.0,9.102e-05,2]
[355746588,1741527034507,-500.0,9.102e-05,2]
[355746589,1741527034517,-500.0,9.102e-05,2]
[355746590,1741527034526,-1034.88,9.102e-05,2]
[355746591,1741527034535,-303.07520539,9.103e-05,2]
[355746592,1741527034545,-1776.0,9.104e-05,2]
[355746593,1741527034555,-36857.88293922,9.104e-05,2]
[355746600,1741527037407,-3949.57,9.1e-05,2]
[355746601,1741527037418,-3063.6,9.101e-05,2]
[355746602,1741527037427,-28419.14533047,9.104e-05,2]
[355746603,1741527037439,-1360.21613656,9.104e-05,2]
[355746604,1741527037472,-1653.46469746,9.104e-05,2]
[355746807,1741527039724,-299.9249473,9.1e-05,2]
[355746834,1741527039985,-773.2350527,9.1e-05,2]
[355746836,1741527039994,-745.17,9.101e-05,2]
[355746838,1741527040004,-500.0,9.103e-05,2]
[355746840,1741527040013,-169.42004165,9.103e-05,2]
[355746842,1741527040022,-491.46037685,9.103e-05,2]
[355746844,1741527040031,-500.0,9.103e-05,2]
[355746846,1741527040040,-76327.91577572,9.104e-05,2]
[355746849,1741527040056,-3099.84,9.104e-05,2]
[355747084,1741527042451,-900.0,9.104e-05,2]
[355747103,1741527042626,-3525.24219867,9.104e-05,2]
[355747111,1741527042691,-5556.75605346,9.104e-05,2]
[355747113,1741527042702,-56516.57781319,9.104e-05,2]
[355747115,1741527042711,-144694.72977868,9.104e-05,2]
[355747117,1741527042723,-4727.92676812,9.104e-05,2]
[355747261,1741527045403,-500.0,9.1e-05,2]
[355747262,1741527045413,-1778.30458547,9.104e-05,2]
[355747263,1741527045523,-1974.11231304,9.104e-05,2]
[355747264,1741527045535,-3170.0,9.104e-05,2]
[355747265,1741527045547,-694.25782594,9.104e-05,2]
[355747266,1741527045559,-52621.5000015,9.104e-05,2]
[355747267,1741527045600,-1452.46171415,9.104e-05,2]
[355747268,1741527045612,-476.22606388,9.104e-05,2]
[355747269,1741527045623,-418.70705423,9.104e-05,2]
[355747546,1741528127006,-1428.55,8.219e-05,2]
[355747547,1741528127050,-150.0,8.23e-05,2]
[355747548,1741528127095,-1000.0,8.241e-05,2]
[355747549,1741528127143,-550.0,8.261e-05,2]
[355747550,1741528127188,-332.64916129,8.282e-05,2]
[355747750,1741528231559,-305.70083871,8.282e-05,2]
[355747751,1741528231570,-150.0,8.57e-05,2]
[355747752,1741528231580,-221.24516129,8.858e-05,2]
[355747753,1741528231613,-378.75483871,8.858e-05,2]
[355747754,1741528231623,-6128.458,8.903e-05,2]
[355747755,1741528231632,-150.0,9.014e-05,2]
[355747756,1741528231641,-300.0,9.019e-05,2]
[355747757,1741528231650,-3602.38745534,9.02e-05,2]
[355747758,1741528231660,-550.0,9.041e-05,2]
[355747759,1741528231670,-150.0,9.041e-05,2]
[355747760,1741528231680,-150.0,9.064e-05,2]
[355747761,1741528231690,-550.0,9.065e-05,2]
[355747762,1741528231699,-159.17082661,9.083e-05,2]
[355747763,1741528231708,-1462.17,9.083e-05,2]
[355747764,1741528231718,-9999.99,9.083e-05,2]
[355747765,1741528231728,-642.48,9.083e-05,2]
[355747766,1741528231738,-2820.43,9.083e-05,2]
[355747767,1741528231747,-160.09807573,9.083e-05,2]
[355747768,1741528231757,-299.99,9.089e-05,2]
[355747769,1741528231766,-150.99,9.089e-05,2]
[355747770,1741528231776,-9999.99,9.089e-05,2]
[355747771,1741528231786,-223.55194738,9.09e-05,2]
[355747772,1741528231804,-132.27714901,9.09e-05,2]
[355747773,1741528231814,-867.72285099,9.098e-05,2]
[355747774,1741528231826,-118.77867841,9.098e-05,2]
[355747775,1741528231836,-2028.51132159,9.098e-05,2]
[355747776,1741528231848,-5198.41027221,9.098e-05,2]
[355747777,1741528231858,-3820.43373613,9.099e-05,2]
[355747778,1741528231868,-500.0,9.1e-05,2]
[355747779,1741528231879,-500.0,9.1e-05,2]
[355747780,1741528231889,-500.0,9.1e-05,2]
[355747781,1741528231899,-500.0,9.1e-05,2]
[355747782,1741528231909,-184.76,9.1e-05,2]
[355747783,1741528231918,-500.0,9.1e-05,2]
[355747784,1741528231929,-500.0,9.1e-05,2]
[355747785,1741528231938,-1080.63,9.1e-05,2]
[355747786,1741528231948,-500.0,9.1e-05,2]
[355747787,1741528231958,-604.55,9.1e-05,2]
[355747788,1741528231967,-535.26,9.1e-05,2]
[355747790,1741528231977,-548.321323,9.1e-05,2]
[355747792,1741528231989,-416.06,9.1e-05,2]
[355747794,1741528232000,-500.0,9.1e-05,2]
[355747796,1741528232010,-1000.0,9.1e-05,2]
[355747798,1741528232019,-282.41406155,9.103e-05,2]
[355747800,1741528232030,-297.832595,9.103e-05,2]
[355747802,1741528232039,-233.067584,9.103e-05,2]
[355747804,1741528232048,-824.54,9.103e-05,2]
[355747806,1741528232057,-691.98,9.103e-05,2]
[355747807,1741528232068,-500.0,9.103e-05,2]
[355747809,1741528232077,-500.0,9.103e-05,2]
[355747810,1741528232087,-500.0,9.103e-05,2]
[355747811,1741528232096,-500.0,9.103e-05,2]
[355747813,1741528232106,-506.5,9.103e-05,2]
[355747814,1741528232116,-500.0,9.103e-05,2]
[355747815,1741528232126,-500.0,9.103e-05,2]
[355747816,1741528232136,-500.0,9.103e-05,2]
[355747817,1741528232146,-540.38701512,9.103e-05,2]
[355747818,1741528232155,-500.0,9.103e-05,2]
[355747819,1741528232165,-500.0,9.103e-05,2]
[355747820,1741528232175,-500.0,9.103e-05,2]
[355747821,1741528232185,-500.0,9.103e-05,2]
[355747822,1741528232195,-524.69,9.103e-05,2]
[355747823,1741528232205,-500.0,9.103e-05,2]
[355747824,1741528232215,-631.20256178,9.103e-05,2]
[355747825,1741528232224,-500.0,9.103e-05,2]
[355747826,1741528232234,-500.0,9.103e-05,2]
[355747827,1741528232244,-500.0,9.103e-05,2]
[355747828,1741528232253,-500.0,9.103e-05,2]
[355747829,1741528232263,-574.51,9.103e-05,2]
[355747830,1741528232273,-415.92373105,9.103e-05,2]
[355747831,1741528232283,-500.0,9.103e-05,2]
[355747832,1741528232293,-512.96,9.103e-05,2]
[355747833,1741528232302,-523.94955773,9.103e-05,2]
[355747834,1741528232311,-500.0,9.103e-05,2]
[355747835,1741528232321,-737.84,9.103e-05,2]
[355747836,1741528232330,-500.0,9.103e-05,2]
[355747837,1741528232339,-628.41,9.103e-05,2]
[355747838,1741528232348,-228.71170496,9.103e-05,2]
[355747839,1741528232358,-601.51,9.103e-05,2]
[355747840,1741528232367,-500.0,9.103e-05,2]
[355747841,1741528232380,-544.36,9.103e-05,2]
[355747842,1741528232390,-501.26,9.103e-05,2]
[355747843,1741528232404,-502.15,9.103e-05,2]
[355747844,1741528232415,-500.0,9.103e-05,2]
[355747845,1741528232425,-500.0,9.103e-05,2]
[355747846,1741528232435,-500.0,9.103e-05,2]
[355747847,1741528232445,-523.45425642,9.103e-05,2]
[355747848,1741528232454,-581.04,9.103e-05,2]
[355747849,1741528232464,-500.0,9.103e-05,2]
[355747850,1741528232474,-523.84,9.103e-05,2]
[355747851,1741528232484,-500.0,9.103e-05,2]
[355747852,1741528232493,-500.0,9.103e-05,2]
[355747853,1741528232503,-500.0,9.103e-05,2]
[355747854,1741528232512,-500.0,9.103e-05,2]
[355747855,1741528232522,-669.44,9.103e-05,2]
[355747856,1741528232531,-1028.45,9.103e-05,2]
[355747857,1741528232542,-500.0,9.103e-05,2]
[355747858,1741528232551,-1179.96,9.103e-05,2]
[355747859,1741528232560,-2247.84,9.103e-05,2]
[355747860,1741528232570,-500.0,9.103e-05,2]
[355747861,1741528232579,-990.0,9.103e-05,2]
[355747862,1741528232588,-1643.25,9.103e-05,2]
[355747863,1741528232598,-500.0,9.103e-05,2]
[355747864,1741528232607,-6631.6,9.103e-05,2]
[355747865,1741528232617,-1147.79,9.103e-05,2]
[355747866,1741528232631,-1476.62,9.103e-05,2]
[355747867,1741528232641,-738.78,9.103e-05,2]
[355747868,1741528232651,-500.0,9.103e-05,2]
[355747869,1741528232660,-500.0,9.103e-05,2]
[355747870,1741528232670,-500.0,9.103e-05,2]
[355747871,1741528232680,-2561.45,9.103e-05,2]
[355747872,1741528232691,-500.0,9.103e-05,2]
[355747873,1741528232701,-528.57,9.103e-05,2]
[355747874,1741528232711,-696.86,9.103e-05,2]
[355747875,1741528232721,-1604.87,9.103e-05,2]
[355747876,1741528232730,-1314.36,9.103e-05,2]
[355747877,1741528232741,-651.96,9.103e-05,2]
[355747878,1741528232751,-222.37441362,9.103e-05,2]
[355747879,1741528232760,-500.0,9.103e-05,2]
[355747880,1741528232770,-834.69,9.103e-05,2]
[355747881,1741528232779,-653.11,9.103e-05,2]
[355747882,1741528232789,-1359.47,9.103e-05,2]
[355747883,1741528232799,-974.48,9.103e-05,2]
[355747884,1741528232808,-500.0,9.103e-05,2]
[355747885,1741528232818,-1121.59,9.103e-05,2]
[355747886,1741528232827,-500.0,9.103e-05,2]
[355747887,1741528232836,-500.0,9.103e-05,2]
[355747888,1741528232846,-1145.21,9.103e-05,2]
[355747889,1741528232856,-500.0,9.103e-05,2]
[355747890,1741528232866,-1467.34,9.103e-05,2]
[355747891,1741528232879,-2106.08,9.103e-05,2]
[355747892,1741528232889,-871.84,9.103e-05,2]
[355747893,1741528232899,-708.83,9.103e-05,2]
[355747894,1741528232909,-1065.87,9.103e-05,2]
[355747895,1741528232919,-8429.35,9.103e-05,2]
[355747896,1741528232929,-928.51,9.103e-05,2]
[355747897,1741528232939,-1777.29,9.103e-05,2]
[355747898,1741528232949,-1080.56,9.103e-05,2]
[355747899,1741528232959,-500.0,9.103e-05,2]
[355747900,1741528232968,-918.26,9.103e-05,2]
[355747901,1741528232979,-913.02,9.103e-05,2]
[355747902,1741528232992,-1931.81,9.103e-05,2]
[355747903,1741528233002,-596.49,9.103e-05,2]
[355747904,1741528233011,-910.87,9.103e-05,2]
[355747905,1741528233022,-3044.17,9.103e-05,2]
[355747906,1741528233031,-500.0,9.103e-05,2]
[355747907,1741528233041,-1912.01,9.103e-05,2]
[355747908,1741528233051,-500.0,9.103e-05,2]
[355747909,1741528233061,-608.43,9.103e-05,2]
[355747910,1741528233071,-594.57,9.103e-05,2]
[355747911,1741528233082,-500.0,9.103e-05,2]
[355747912,1741528233092,-500.0,9.103e-05,2]
[355747913,1741528233103,-1496.05,9.103e-05,2]
[355747914,1741528233114,-997.69,9.103e-05,2]
[355747915,1741528233127,-500.0,9.103e-05,2]
[355747916,1741528233138,-295.11510455,9.103e-05,2]
[355747917,1741528233149,-628.3,9.103e-05,2]
[355747918,1741528233160,-650.99,9.103e-05,2]
[355747919,1741528233170,-991.76,9.103e-05,2]
[355747920,1741528233181,-500.0,9.103e-05,2]
[355747921,1741528233193,-525.64,9.103e-05,2]
[355747922,1741528233204,-972.13,9.103e-05,2]
[355747923,1741528233215,-500.0,9.103e-05,2]
[355747924,1741528233226,-527.7,9.103e-05,2]
[355747925,1741528233235,-694.12,9.103e-05,2]
[355747926,1741528233245,-500.0,9.103e-05,2]
[355747927,1741528233256,-1628.37,9.103e-05,2]
[355747928,1741528233267,-840.15,9.103e-05,2]
[355747929,1741528233278,-2436.97,9.103e-05,2]
[355747930,1741528233289,-1507.28,9.103e-05,2]
[355747931,1741528233299,-1545.55,9.103e-05,2]
[355747932,1741528233311,-803.77,9.103e-05,2]
[355747933,1741528233321,-591.8,9.103e-05,2]
[355747934,1741528233332,-1483.24,9.103e-05,2]
[355747935,1741528233342,-972.0,9.103e-05,2]
[355747936,1741528233353,-1851.3,9.103e-05,2]
[355747937,1741528233363,-500.0,9.103e-05,2]